[Event "Early-Titled-Tuesday-Blitz-February-27-2024"]
[Site "Chess.com"]
[Date "2024.02.27"]
[Round "7"]
[White "Rosh1610"]
[Black "karinachess1"]
[Result "1-0"]
[WhiteElo "2431"]
[BlackElo "2606"]
[TimeControl "180+1"]
[EndTime "9:16:24 PST"]
[Termination "Rosh1610 won by resignation"]

1. e4 {[%clk 0:03:00.9]} 1... e5 {[%clk 0:03:00]} 2. Nf3 {[%clk 0:03:00.2]} 2...
Nc6 {[%clk 0:03:00.3]} 3. Bb5 {[%clk 0:03:00.2]} 3... Nge7 {[%clk 0:03:00.8]} 4.
O-O {[%clk 0:02:55.8]} 4... Ng6 {[%clk 0:03:01.2]} 5. c3 {[%clk 0:02:55.6]} 5...
a6 {[%clk 0:02:52.5]} 6. Ba4 {[%clk 0:02:54.5]} 6... d6 {[%clk 0:02:49.6]} 7. d4
{[%clk 0:02:54.2]} 7... b5 {[%clk 0:02:43.9]} 8. Bb3 {[%clk 0:02:53.5]} 8... Be7
{[%clk 0:02:44.4]} 9. dxe5 {[%clk 0:02:50.1]} 9... dxe5 {[%clk 0:02:29.8]} 10.
Qxd8+ {[%clk 0:02:49]} 10... Nxd8 {[%clk 0:02:27.9]} 11. a4 {[%clk 0:02:42.6]}
11... Bb7 {[%clk 0:02:28.1]} 12. Nbd2 {[%clk 0:02:39.5]} 12... O-O {[%clk
0:02:24.7]} 13. Bc2 {[%clk 0:02:39.6]} 13... Ne6 {[%clk 0:02:23.3]} 14. Nb3
{[%clk 0:02:36.8]} 14... Nc5 {[%clk 0:01:58.5]} 15. Nxc5 {[%clk 0:02:21.1]}
15... Bxc5 {[%clk 0:01:59.4]} 16. b4 {[%clk 0:02:20.7]} 16... Bd6 {[%clk
0:01:47.1]} 17. Be3 {[%clk 0:02:17.3]} 17... Rfd8 {[%clk 0:01:43]} 18. Ra2
{[%clk 0:02:15.6]} 18... Nf8 {[%clk 0:01:41.3]} 19. Rfa1 {[%clk 0:02:14.6]}
19... Ne6 {[%clk 0:01:39.5]} 20. axb5 {[%clk 0:02:12.5]} 20... axb5 {[%clk
0:01:40.4]} 21. Rxa8 {[%clk 0:02:12]} 21... Rxa8 {[%clk 0:01:41.3]} 22. Rxa8+
{[%clk 0:02:10.2]} 22... Bxa8 {[%clk 0:01:42.2]} 23. Bd3 {[%clk 0:02:10.6]}
23... Bc6 {[%clk 0:01:36.9]} 24. Nd2 {[%clk 0:02:08.2]} 24... Kf8 {[%clk
0:01:36.2]} 25. f3 {[%clk 0:02:07.8]} 25... Bd7 {[%clk 0:01:34.2]} 26. Nb1
{[%clk 0:02:06.8]} 26... c5 {[%clk 0:01:27.6]} 27. bxc5 {[%clk 0:02:06.3]} 27...
Bxc5 {[%clk 0:01:28.5]} 28. Kf2 {[%clk 0:02:03.6]} 28... Ke7 {[%clk 0:01:25.6]}
29. g3 {[%clk 0:01:57.9]} 29... Kd6 {[%clk 0:01:22.9]} 30. Bxc5+ {[%clk
0:01:55.1]} 30... Kxc5 {[%clk 0:01:20.4]} 31. Ke3 {[%clk 0:01:54.9]} 31... g5
{[%clk 0:01:04.3]} 32. Na3 {[%clk 0:01:52.4]} 32... b4 {[%clk 0:00:51.9]} 33.
cxb4+ {[%clk 0:01:51]} 33... Kxb4 {[%clk 0:00:52.8]} 34. Nc4 {[%clk 0:01:45.7]}
34... f6 {[%clk 0:00:43]} 35. Nb6 {[%clk 0:01:45.2]} 35... Bc6 {[%clk
0:00:39.1]} 36. Nd5+ {[%clk 0:01:41.8]} 36... Kc5 {[%clk 0:00:26.6]} 37. Nxf6
{[%clk 0:01:41.1]} 37... Nf8 {[%clk 0:00:27.2]} 38. Ng4 {[%clk 0:01:38.5]} 38...
Kd6 {[%clk 0:00:27.6]} 39. Nh6 {[%clk 0:01:39]} 39... Be8 {[%clk 0:00:23.1]} 40.
Bc4 {[%clk 0:01:37.1]} 40... Ke7 {[%clk 0:00:20.6]} 41. Ng8+ {[%clk 0:01:34]}
41... Kd6 {[%clk 0:00:21]} 42. Nf6 {[%clk 0:01:33.8]} 42... Bg6 {[%clk
0:00:21.2]} 43. h4 {[%clk 0:01:30.1]} 43... gxh4 {[%clk 0:00:21.2]} 44. gxh4
{[%clk 0:01:31]} 44... Ne6 {[%clk 0:00:21.1]} 45. h5 {[%clk 0:01:24.5]} 45...
Bf7 {[%clk 0:00:21.3]} 46. h6 {[%clk 0:01:18.8]} 46... Bg6 {[%clk 0:00:21.8]}
47. Bxe6 {[%clk 0:01:09.5]} 47... Kxe6 {[%clk 0:00:22.7]} 48. Nd5 {[%clk
0:01:08.6]} 48... Bh5 {[%clk 0:00:22.5]} 49. f4 {[%clk 0:01:08.3]} 49... exf4+
{[%clk 0:00:21.6]} 50. Nxf4+ {[%clk 0:01:08]} 50... Kf6 {[%clk 0:00:20.3]} 51.
Nxh5+ {[%clk 0:01:08.9]} 51... Kg5 {[%clk 0:00:20.7]} 52. Nf4 {[%clk 0:01:05.6]}
52... Kxh6 {[%clk 0:00:21.6]} 53. e5 {[%clk 0:01:06.2]} 53... Kg7 {[%clk
0:00:22.5]} 54. e6 {[%clk 0:01:06.9]} 54... Kf6 {[%clk 0:00:22.7]} 55. Kf3
{[%clk 0:01:07.2]} 55... h6 {[%clk 0:00:18.7]} 56. Kg3 {[%clk 0:01:08.1]} 1-0

[Event "Early-Titled-Tuesday-Blitz-February-27-2024"]
[Site "Chess.com"]
[Date "2024.02.27"]
[Round "7"]
[White "BozeKat"]
[Black "AcostaPablo"]
[Result "0-1"]
[WhiteElo "2163"]
[BlackElo "2614"]
[TimeControl "180+1"]
[EndTime "9:16:24 PST"]
[Termination "AcostaPablo won on time"]

1. d4 {[%clk 0:03:00.9]} 1... Nf6 {[%clk 0:02:51]} 2. Bg5 {[%clk 0:03:00.6]}
2... Ne4 {[%clk 0:02:43.9]} 3. Bf4 {[%clk 0:03:00.6]} 3... c5 {[%clk 0:02:44.2]}
4. f3 {[%clk 0:03:00.3]} 4... Nf6 {[%clk 0:02:43.9]} 5. d5 {[%clk 0:02:59.4]}
5... d6 {[%clk 0:02:43.4]} 6. e4 {[%clk 0:02:56.8]} 6... g6 {[%clk 0:02:41.1]}
7. c4 {[%clk 0:02:53.2]} 7... Bg7 {[%clk 0:02:41.3]} 8. Nc3 {[%clk 0:02:53.3]}
8... O-O {[%clk 0:02:41.3]} 9. Qc2 {[%clk 0:02:45]} 9... Na6 {[%clk 0:02:39.8]}
10. a3 {[%clk 0:02:43.4]} 10... Nc7 {[%clk 0:02:39.4]} 11. g4 {[%clk 0:02:17.8]}
11... h5 {[%clk 0:02:09.8]} 12. h3 {[%clk 0:02:04.3]} 12... a6 {[%clk
0:02:03.7]} 13. e5 {[%clk 0:01:53]} 13... dxe5 {[%clk 0:02:03.1]} 14. Bxe5
{[%clk 0:01:53.9]} 14... Nce8 {[%clk 0:01:30.2]} 15. O-O-O {[%clk 0:01:48.5]}
15... Nd6 {[%clk 0:01:28.5]} 16. Bd3 {[%clk 0:01:28.1]} 16... b5 {[%clk
0:01:16.5]} 17. cxb5 {[%clk 0:01:26.7]} 17... c4 {[%clk 0:01:14.3]} 18. Be4
{[%clk 0:00:35.2]} 18... Nfxe4 {[%clk 0:00:36.6]} 19. Bxg7 {[%clk 0:00:36.1]}
19... Kxg7 {[%clk 0:00:36.2]} 20. fxe4 {[%clk 0:00:30.9]} 20... Nxb5 {[%clk
0:00:19.9]} 21. Nxb5 {[%clk 0:00:27.5]} 21... axb5 {[%clk 0:00:19.7]} 22. gxh5
{[%clk 0:00:27.5]} 22... Qd6 {[%clk 0:00:17.8]} 23. Qc3+ {[%clk 0:00:26.4]}
23... f6 {[%clk 0:00:18]} 24. Nf3 {[%clk 0:00:18.2]} 24... Qf4+ {[%clk
0:00:17.5]} 25. Nd2 {[%clk 0:00:14.3]} 25... b4 {[%clk 0:00:16.5]} 26. Qxb4
{[%clk 0:00:13.5]} 26... c3 {[%clk 0:00:16.1]} 27. Qxe7+ {[%clk 0:00:13.6]}
27... Rf7 {[%clk 0:00:15.6]} 28. h6+ {[%clk 0:00:13.1]} 28... Qxh6 {[%clk
0:00:14.6]} 29. Qb4 {[%clk 0:00:06]} 29... cxd2+ {[%clk 0:00:13.9]} 30. Rxd2
{[%clk 0:00:06.9]} 30... Ba6 {[%clk 0:00:13.2]} 31. Kb1 {[%clk 0:00:05.5]} 31...
Rb7 {[%clk 0:00:13.4]} 32. Qc3 {[%clk 0:00:05]} 32... Rc8 {[%clk 0:00:12.8]} 33.
Qxc8 {[%clk 0:00:03]} 33... Qxd2 {[%clk 0:00:13]} 0-1

[Event "Early-Titled-Tuesday-Blitz-February-27-2024"]
[Site "Chess.com"]
[Date "2024.02.27"]
[Round "7"]
[White "GMJustin"]
[Black "DeArron_Fox"]
[Result "0-1"]
[WhiteElo "2337"]
[BlackElo "2517"]
[TimeControl "180+1"]
[EndTime "9:16:24 PST"]
[Termination "DeArron_Fox won on time"]

1. e4 {[%clk 0:02:26.1]} 1... c5 {[%clk 0:02:47.3]} 2. f4 {[%clk 0:02:25.2]}
2... g6 {[%clk 0:02:40.6]} 3. Nf3 {[%clk 0:02:24]} 3... Bg7 {[%clk 0:02:41]} 4.
g3 {[%clk 0:02:14.9]} 4... Nc6 {[%clk 0:02:27]} 5. Bg2 {[%clk 0:02:10.5]} 5...
e6 {[%clk 0:02:08.6]} 6. O-O {[%clk 0:02:04.1]} 6... Nge7 {[%clk 0:02:01.6]} 7.
c3 {[%clk 0:01:56.8]} 7... O-O {[%clk 0:01:56.6]} 8. Kh1 {[%clk 0:01:29.2]} 8...
b5 {[%clk 0:01:24.5]} 9. d4 {[%clk 0:01:26.1]} 9... b4 {[%clk 0:01:02.5]} 10.
dxc5 {[%clk 0:01:20.1]} 10... Ba6 {[%clk 0:00:25.2]} 11. Re1 {[%clk 0:01:16.6]}
11... Qa5 {[%clk 0:00:25.5]} 12. Be3 {[%clk 0:00:52.3]} 12... Rab8 {[%clk
0:00:25.1]} 13. cxb4 {[%clk 0:00:08.9]} 13... Qxb4 {[%clk 0:00:06.6]} 14. Nbd2
{[%clk 0:00:07.5]} 14... Qxb2 {[%clk 0:00:06]} 15. Nb3 {[%clk 0:00:03.7]} 15...
Bc4 {[%clk 0:00:02.8]} 16. e5 {[%clk 0:00:03.4]} 16... Nb4 {[%clk 0:00:01.9]}
17. Bd4 {[%clk 0:00:03.3]} 17... Qa3 {[%clk 0:00:01.7]} 18. Rc1 {[%clk
0:00:02.4]} 18... Bxb3 {[%clk 0:00:01.7]} 19. Qxb3 {[%clk 0:00:02.3]} 19... Qxb3
{[%clk 0:00:02.3]} 20. axb3 {[%clk 0:00:02.5]} 20... Nd3 {[%clk 0:00:03.2]} 21.
Red1 {[%clk 0:00:02.6]} 21... Nxc1 {[%clk 0:00:03.4]} 22. Rxc1 {[%clk
0:00:03.3]} 22... Nc6 {[%clk 0:00:03.6]} 23. Bf2 {[%clk 0:00:02.5]} 23... Rxb3
{[%clk 0:00:03.9]} 24. Nd2 {[%clk 0:00:02.6]} 24... Rb2 {[%clk 0:00:03.7]} 25.
Be3 {[%clk 0:00:02.6]} 25... f6 {[%clk 0:00:02.9]} 26. Nc4 {[%clk 0:00:02.8]}
26... Rb3 {[%clk 0:00:02.6]} 27. Bf2 {[%clk 0:00:01.4]} 27... fxe5 {[%clk
0:00:02.5]} 28. Nd6 {[%clk 0:00:01.2]} 28... exf4 {[%clk 0:00:02.2]} 0-1

[Event "Early-Titled-Tuesday-Blitz-February-27-2024"]
[Site "Chess.com"]
[Date "2024.02.27"]
[Round "7"]
[White "tsaruk_maks"]
[Black "124chess"]
[Result "0-1"]
[WhiteElo "2735"]
[BlackElo "2551"]
[TimeControl "180+1"]
[EndTime "9:16:29 PST"]
[Termination "124chess won on time"]

1. d4 {[%clk 0:03:00.9]} 1... Nf6 {[%clk 0:02:57]} 2. c4 {[%clk 0:03:01.1]} 2...
e6 {[%clk 0:02:57.4]} 3. Nf3 {[%clk 0:03:01.1]} 3... b6 {[%clk 0:02:56.5]} 4. g3
{[%clk 0:02:58.6]} 4... Bb7 {[%clk 0:02:54.8]} 5. Bg2 {[%clk 0:02:59.1]} 5... g6
{[%clk 0:02:55.5]} 6. O-O {[%clk 0:02:59.1]} 6... Bg7 {[%clk 0:02:56]} 7. Bg5
{[%clk 0:02:54.5]} 7... h6 {[%clk 0:02:54.6]} 8. Bxf6 {[%clk 0:02:52.8]} 8...
Qxf6 {[%clk 0:02:55.5]} 9. Nc3 {[%clk 0:02:52]} 9... O-O {[%clk 0:02:53.3]} 10.
e3 {[%clk 0:02:50.4]} 10... d6 {[%clk 0:02:49.6]} 11. Nd2 {[%clk 0:02:41.1]}
11... Bxg2 {[%clk 0:02:40.5]} 12. Kxg2 {[%clk 0:02:42]} 12... Nd7 {[%clk
0:02:38.4]} 13. Qf3 {[%clk 0:02:42.1]} 13... Qxf3+ {[%clk 0:02:37.2]} 14. Kxf3
{[%clk 0:02:43]} 14... c5 {[%clk 0:02:30.8]} 15. Nb3 {[%clk 0:02:38.9]} 15...
Rac8 {[%clk 0:02:25.3]} 16. Rac1 {[%clk 0:01:56.7]} 16... cxd4 {[%clk
0:02:24.4]} 17. exd4 {[%clk 0:01:57.6]} 17... Rxc4 {[%clk 0:02:23.3]} 18. Nb5
{[%clk 0:01:58.3]} 18... d5 {[%clk 0:02:18.5]} 19. Nd2 {[%clk 0:01:41.9]} 19...
Rxc1 {[%clk 0:02:15.3]} 20. Rxc1 {[%clk 0:01:42.8]} 20... a6 {[%clk 0:02:16]}
21. Nd6 {[%clk 0:01:00.8]} 21... Bxd4 {[%clk 0:02:15.4]} 22. Rc7 {[%clk
0:01:01.6]} 22... Ne5+ {[%clk 0:02:12.2]} 23. Ke2 {[%clk 0:01:02.1]} 23... Bxb2
{[%clk 0:02:03.9]} 24. f4 {[%clk 0:01:02.5]} 24... Ng4 {[%clk 0:01:49.5]} 25.
Nf3 {[%clk 0:01:02.2]} 25... Nf6 {[%clk 0:01:34.6]} 26. a4 {[%clk 0:00:40.6]}
26... Ba3 {[%clk 0:01:15.2]} 27. Nc8 {[%clk 0:00:37.2]} 27... Ne4 {[%clk
0:01:03.5]} 28. Nxb6 {[%clk 0:00:22.8]} 28... Rb8 {[%clk 0:01:02.8]} 29. a5
{[%clk 0:00:22.9]} 29... Bb4 {[%clk 0:01:02.4]} 30. Rd7 {[%clk 0:00:04]} 30...
Bxa5 {[%clk 0:01:00.4]} 31. Na4 {[%clk 0:00:03.3]} 31... Rb4 {[%clk 0:00:53.8]}
32. Ne5 {[%clk 0:00:03.5]} 32... Rxa4 {[%clk 0:00:53.2]} 33. Nxf7 {[%clk
0:00:03.7]} 33... h5 {[%clk 0:00:42.4]} 34. Ne5 {[%clk 0:00:02.1]} 34... Ra2+
{[%clk 0:00:29.1]} 35. Kd1 {[%clk 0:00:02.8]} 35... Bc3 {[%clk 0:00:19.4]} 0-1

[Event "Early-Titled-Tuesday-Blitz-February-27-2024"]
[Site "Chess.com"]
[Date "2024.02.27"]
[Round "7"]
[White "BallottiLuca"]
[Black "Austen48"]
[Result "0-1"]
[WhiteElo "2397"]
[BlackElo "2264"]
[TimeControl "180+1"]
[EndTime "9:16:30 PST"]
[Termination "Austen48 won on time"]

1. d4 {[%clk 0:03:00.9]} 1... Nf6 {[%clk 0:02:59]} 2. c4 {[%clk 0:03:01.8]} 2...
e6 {[%clk 0:02:59.2]} 3. Nc3 {[%clk 0:03:00.4]} 3... Bb4 {[%clk 0:02:58.8]} 4.
Qc2 {[%clk 0:02:59.4]} 4... O-O {[%clk 0:02:58.5]} 5. a3 {[%clk 0:02:58.6]} 5...
Bxc3+ {[%clk 0:02:57.3]} 6. Qxc3 {[%clk 0:02:59.5]} 6... d5 {[%clk 0:02:56.3]}
7. Nf3 {[%clk 0:02:57.1]} 7... dxc4 {[%clk 0:02:53.2]} 8. Qxc4 {[%clk 0:02:58]}
8... b6 {[%clk 0:02:53.4]} 9. Bg5 {[%clk 0:02:55.8]} 9... Ba6 {[%clk 0:02:52.2]}
10. Qa4 {[%clk 0:02:54.8]} 10... h6 {[%clk 0:02:50.5]} 11. Bh4 {[%clk
0:02:52.4]} 11... Qd7 {[%clk 0:02:48.4]} 12. Qc2 {[%clk 0:02:46.3]} 12... c5
{[%clk 0:02:40.7]} 13. dxc5 {[%clk 0:02:40.4]} 13... bxc5 {[%clk 0:02:38.6]} 14.
Bxf6 {[%clk 0:02:34.5]} 14... gxf6 {[%clk 0:02:38.1]} 15. e3 {[%clk 0:02:25]}
15... Bxf1 {[%clk 0:02:36.4]} 16. Kxf1 {[%clk 0:02:24.2]} 16... Rc8 {[%clk
0:02:32.1]} 17. Qc4 {[%clk 0:02:10.1]} 17... Nc6 {[%clk 0:02:25.2]} 18. g3
{[%clk 0:02:07.1]} 18... Rab8 {[%clk 0:02:09.8]} 19. b3 {[%clk 0:01:41.1]} 19...
Na5 {[%clk 0:02:03]} 20. Qg4+ {[%clk 0:01:41.1]} 20... Kh8 {[%clk 0:02:00.6]}
21. b4 {[%clk 0:01:41.8]} 21... cxb4 {[%clk 0:01:51]} 22. axb4 {[%clk
0:01:42.7]} 22... Nb3 {[%clk 0:01:49.2]} 23. Rb1 {[%clk 0:01:20.2]} 23... Qd5
{[%clk 0:01:13.4]} 24. Kg2 {[%clk 0:01:08.6]} 24... Rc4 {[%clk 0:01:04]} 25. Qh3
{[%clk 0:00:52.7]} 25... Nd2 {[%clk 0:01:03.1]} 26. Qxh6+ {[%clk 0:00:51.7]}
26... Kg8 {[%clk 0:01:02.6]} 27. e4 {[%clk 0:00:37.4]} 27... Nxe4 {[%clk
0:01:00.6]} 28. Rhd1 {[%clk 0:00:32.1]} 28... Qf5 {[%clk 0:00:59.8]} 29. Qe3
{[%clk 0:00:22.9]} 29... Nc3 {[%clk 0:00:52.3]} 30. Rdc1 {[%clk 0:00:15.3]}
30... a5 {[%clk 0:00:39.8]} 31. Rb3 {[%clk 0:00:11.7]} 31... Nd5 {[%clk
0:00:38.2]} 32. Qa7 {[%clk 0:00:10.6]} 32... Rbxb4 {[%clk 0:00:32.1]} 33. Rxb4
{[%clk 0:00:10.9]} 33... Rxb4 {[%clk 0:00:29.2]} 34. Rc8+ {[%clk 0:00:05.9]}
34... Kg7 {[%clk 0:00:28.7]} 35. Qa8 {[%clk 0:00:06.8]} 35... Ne3+ {[%clk
0:00:20.2]} 36. fxe3 {[%clk 0:00:04.3]} 36... Rb2+ {[%clk 0:00:20.1]} 37. Kg1
{[%clk 0:00:05]} 37... Qb1+ {[%clk 0:00:19.4]} 0-1

[Event "Early-Titled-Tuesday-Blitz-February-27-2024"]
[Site "Chess.com"]
[Date "2024.02.27"]
[Round "7"]
[White "campochess"]
[Black "TheAlienParty"]
[Result "1-0"]
[WhiteElo "2200"]
[BlackElo "2388"]
[TimeControl "180+1"]
[EndTime "9:16:32 PST"]
[Termination "campochess won by checkmate"]

1. Nf3 {[%clk 0:02:59.8]} 1... d5 {[%clk 0:02:52.2]} 2. c4 {[%clk 0:02:57.4]}
2... c6 {[%clk 0:02:51.1]} 3. cxd5 {[%clk 0:02:55.6]} 3... cxd5 {[%clk
0:02:51.1]} 4. d4 {[%clk 0:02:55.1]} 4... Nc6 {[%clk 0:02:50.7]} 5. Nc3 {[%clk
0:02:50.6]} 5... g6 {[%clk 0:02:49.7]} 6. Ne5 {[%clk 0:02:49.1]} 6... f6 {[%clk
0:02:37.7]} 7. Nxc6 {[%clk 0:02:48.7]} 7... bxc6 {[%clk 0:02:37.6]} 8. e3 {[%clk
0:02:48.5]} 8... Bg7 {[%clk 0:02:35.9]} 9. Bd3 {[%clk 0:02:47.4]} 9... Nh6
{[%clk 0:02:35.4]} 10. O-O {[%clk 0:02:37.6]} 10... O-O {[%clk 0:02:34.7]} 11.
e4 {[%clk 0:02:33.7]} 11... e5 {[%clk 0:02:24]} 12. exd5 {[%clk 0:02:32.8]}
12... exd4 {[%clk 0:02:22.5]} 13. Ne4 {[%clk 0:02:15.2]} 13... Qxd5 {[%clk
0:02:19.1]} 14. Qc2 {[%clk 0:02:11.3]} 14... Be6 {[%clk 0:02:18]} 15. b3 {[%clk
0:02:09.7]} 15... Nf5 {[%clk 0:02:11.1]} 16. Ba3 {[%clk 0:01:58.2]} 16... Rfe8
{[%clk 0:02:04.4]} 17. Nc5 {[%clk 0:01:57.9]} 17... Bf7 {[%clk 0:01:58.8]} 18.
Rad1 {[%clk 0:01:46.9]} 18... Nd6 {[%clk 0:01:56.9]} 19. Rfe1 {[%clk 0:01:31]}
19... f5 {[%clk 0:01:56.2]} 20. Nd7 {[%clk 0:01:22.5]} 20... Rad8 {[%clk
0:01:46]} 21. Rxe8+ {[%clk 0:01:15.2]} 21... Nxe8 {[%clk 0:01:43.7]} 22. Nc5
{[%clk 0:01:10.5]} 22... Nf6 {[%clk 0:01:42.5]} 23. Bc4 {[%clk 0:01:05.7]} 23...
Qe5 {[%clk 0:01:41]} 24. Bxf7+ {[%clk 0:01:02.8]} 24... Kxf7 {[%clk 0:01:40.8]}
25. Qc4+ {[%clk 0:01:01.7]} 25... Qd5 {[%clk 0:01:40.5]} 26. Qa6 {[%clk
0:01:00.9]} 26... Ng4 {[%clk 0:01:23.4]} 27. Qxa7+ {[%clk 0:00:57.3]} 27... Kg8
{[%clk 0:01:22.6]} 28. Qe7 {[%clk 0:00:47.1]} 28... Be5 {[%clk 0:01:16.7]} 29.
Ne6 {[%clk 0:00:37.3]} 29... Qd7 {[%clk 0:01:09.4]} 30. Nxd8 {[%clk 0:00:30.5]}
30... Qxe7 {[%clk 0:01:07.2]} 31. Bxe7 {[%clk 0:00:29.4]} 31... Bxh2+ {[%clk
0:01:05]} 32. Kf1 {[%clk 0:00:27.4]} 32... Ne5 {[%clk 0:00:58.1]} 33. Bd6 {[%clk
0:00:24.3]} 33... g5 {[%clk 0:00:54.2]} 34. Rxd4 {[%clk 0:00:21.5]} 34... h5
{[%clk 0:00:51.9]} 35. Bxe5 {[%clk 0:00:18.5]} 35... Bxe5 {[%clk 0:00:51.4]} 36.
Rd7 {[%clk 0:00:18.3]} 36... Kf8 {[%clk 0:00:50.4]} 37. Nxc6 {[%clk 0:00:18.2]}
37... Bc3 {[%clk 0:00:49.5]} 38. a4 {[%clk 0:00:18]} 38... h4 {[%clk 0:00:48.9]}
39. Rd3 {[%clk 0:00:17.8]} 39... Bf6 {[%clk 0:00:48.1]} 40. a5 {[%clk
0:00:17.9]} 40... Ke8 {[%clk 0:00:47.1]} 41. a6 {[%clk 0:00:17.7]} 41... g4
{[%clk 0:00:47.1]} 42. a7 {[%clk 0:00:17.6]} 42... f4 {[%clk 0:00:47]} 43. a8=Q+
{[%clk 0:00:17.4]} 43... Kf7 {[%clk 0:00:46.9]} 44. Qb7+ {[%clk 0:00:17.5]}
44... Kg6 {[%clk 0:00:46.9]} 45. Rd7 {[%clk 0:00:17.3]} 45... h3 {[%clk
0:00:46.7]} 46. gxh3 {[%clk 0:00:16]} 46... gxh3 {[%clk 0:00:46.7]} 47. Nd4
{[%clk 0:00:15.6]} 47... h2 {[%clk 0:00:46.5]} 48. Qg2+ {[%clk 0:00:15.4]} 48...
Bg5 {[%clk 0:00:46.2]} 49. Nf3 {[%clk 0:00:14.4]} 49... h1=Q+ {[%clk 0:00:45.1]}
50. Qxh1 {[%clk 0:00:14.5]} 50... Kf5 {[%clk 0:00:45.1]} 51. Nxg5 {[%clk
0:00:14.6]} 51... Kg4 {[%clk 0:00:45.1]} 52. Rd5 {[%clk 0:00:15]} 52... f3
{[%clk 0:00:44.9]} 53. Qxf3+ {[%clk 0:00:15]} 53... Kh4 {[%clk 0:00:44.7]} 54.
Qg3+ {[%clk 0:00:14.8]} 54... Kh5 {[%clk 0:00:44.3]} 55. Nf7# {[%clk 0:00:15.4]}
1-0

[Event "Early-Titled-Tuesday-Blitz-February-27-2024"]
[Site "Chess.com"]
[Date "2024.02.27"]
[Round "7"]
[White "Binary010"]
[Black "FREDERICKtheMATE"]
[Result "1/2-1/2"]
[WhiteElo "2853"]
[BlackElo "2686"]
[TimeControl "180+1"]
[EndTime "9:16:34 PST"]
[Termination "Game drawn - insufficient material"]

1. e4 {[%clk 0:03:00.9]} 1... c5 {[%clk 0:02:57.9]} 2. Nf3 {[%clk 0:03:01]} 2...
Nc6 {[%clk 0:02:58.3]} 3. d4 {[%clk 0:03:01.1]} 3... cxd4 {[%clk 0:02:59.2]} 4.
Nxd4 {[%clk 0:03:01.8]} 4... Nf6 {[%clk 0:02:59.8]} 5. Nc3 {[%clk 0:03:02.3]}
5... e5 {[%clk 0:03:00.3]} 6. Ndb5 {[%clk 0:03:01.1]} 6... d6 {[%clk 0:03:00.9]}
7. Bg5 {[%clk 0:02:59.7]} 7... a6 {[%clk 0:03:01.2]} 8. Na3 {[%clk 0:03:00.3]}
8... b5 {[%clk 0:03:01]} 9. Nab1 {[%clk 0:03:01]} 9... Be7 {[%clk 0:02:58.6]}
10. Bxf6 {[%clk 0:03:00.9]} 10... Bxf6 {[%clk 0:02:59.5]} 11. a4 {[%clk
0:03:00.9]} 11... b4 {[%clk 0:02:59.3]} 12. Nd5 {[%clk 0:03:01.2]} 12... Bg5
{[%clk 0:02:58.3]} 13. Bc4 {[%clk 0:03:01.2]} 13... O-O {[%clk 0:02:56.1]} 14.
O-O {[%clk 0:03:01.4]} 14... Kh8 {[%clk 0:02:54.6]} 15. c3 {[%clk 0:02:50]}
15... Rb8 {[%clk 0:02:51.9]} 16. cxb4 {[%clk 0:02:13.7]} 16... Nxb4 {[%clk
0:02:52.8]} 17. b3 {[%clk 0:02:14]} 17... f5 {[%clk 0:02:47.4]} 18. Nbc3 {[%clk
0:02:08.3]} 18... a5 {[%clk 0:02:33.8]} 19. Nxb4 {[%clk 0:01:58.3]} 19... axb4
{[%clk 0:02:30.6]} 20. Nb5 {[%clk 0:01:58.1]} 20... fxe4 {[%clk 0:02:22.4]} 21.
Nxd6 {[%clk 0:01:37.3]} 21... Qe7 {[%clk 0:02:05]} 22. Nxe4 {[%clk 0:01:24.9]}
22... Bf4 {[%clk 0:02:03.9]} 23. Qe2 {[%clk 0:01:21.8]} 23... Bb7 {[%clk
0:02:02.2]} 24. Rfe1 {[%clk 0:01:17.8]} 24... Rbd8 {[%clk 0:02:00.8]} 25. g3
{[%clk 0:00:57.3]} 25... Bh6 {[%clk 0:01:55.4]} 26. Rad1 {[%clk 0:00:56.5]}
26... Rd4 {[%clk 0:01:47.5]} 27. Rxd4 {[%clk 0:00:52.4]} 27... exd4 {[%clk
0:01:48.4]} 28. Bd3 {[%clk 0:00:17.6]} 28... Bd5 {[%clk 0:01:43.5]} 29. Qc2
{[%clk 0:00:15.7]} 29... Qf7 {[%clk 0:01:39.8]} 30. Bc4 {[%clk 0:00:10.5]} 30...
Bxc4 {[%clk 0:01:35.5]} 31. bxc4 {[%clk 0:00:10.2]} 31... Qf3 {[%clk 0:01:30]}
32. Qe2 {[%clk 0:00:06.5]} 32... Qxe2 {[%clk 0:01:17]} 33. Rxe2 {[%clk
0:00:07.4]} 33... d3 {[%clk 0:01:17.3]} 34. Rb2 {[%clk 0:00:06.5]} 34... Rd8
{[%clk 0:01:16.2]} 35. Rxb4 {[%clk 0:00:05.1]} 35... d2 {[%clk 0:01:16.1]} 36.
Nxd2 {[%clk 0:00:05.5]} 36... Bxd2 {[%clk 0:01:16.5]} 37. Rb5 {[%clk 0:00:05.5]}
37... h6 {[%clk 0:01:10.8]} 38. Rd5 {[%clk 0:00:04.7]} 38... Rxd5 {[%clk
0:01:09.1]} 39. cxd5 {[%clk 0:00:05.6]} 39... Kg8 {[%clk 0:01:08.9]} 40. Kf1
{[%clk 0:00:04.9]} 40... Kf7 {[%clk 0:01:09.5]} 41. Ke2 {[%clk 0:00:05.5]} 41...
Ba5 {[%clk 0:01:08.8]} 42. Kd3 {[%clk 0:00:05.9]} 42... Ke7 {[%clk 0:01:06.7]}
43. Ke4 {[%clk 0:00:05.9]} 43... Kd6 {[%clk 0:01:05.5]} 44. f4 {[%clk
0:00:05.4]} 44... Bd2 {[%clk 0:01:04.8]} 45. g4 {[%clk 0:00:04.3]} 45... Ba5
{[%clk 0:01:03.8]} 46. h4 {[%clk 0:00:04.3]} 46... Be1 {[%clk 0:01:03.3]} 47. h5
{[%clk 0:00:04.4]} 47... Bd2 {[%clk 0:01:03.8]} 48. Kf5 {[%clk 0:00:02.3]} 48...
Kxd5 {[%clk 0:01:02.7]} 49. g5 {[%clk 0:00:02]} 49... hxg5 {[%clk 0:00:59.2]}
50. fxg5 {[%clk 0:00:02.9]} 50... Kd6 {[%clk 0:00:46.8]} 51. Kg6 {[%clk
0:00:03]} 51... Kc6 {[%clk 0:00:46.1]} 52. a5 {[%clk 0:00:02.7]} 52... Kb5
{[%clk 0:00:45.5]} 53. h6 {[%clk 0:00:02.8]} 53... gxh6 {[%clk 0:00:44.7]} 54.
gxh6 {[%clk 0:00:03.7]} 54... Bxh6 {[%clk 0:00:44.7]} 55. Kxh6 {[%clk
0:00:04.3]} 55... Kxa5 {[%clk 0:00:45.3]} 1/2-1/2